fUST/lending_fUST_20240828
["ID","MTS","AMOUNT","RATE_DAILY","PERIOD"]
[336412870,1724817039688,-500.0,0.00010958,2]
[336412871,1724817039698,-500.0,0.00010958,2]
[336412872,1724817039708,-557.4459425,0.00010958,2]
[336412873,1724817039719,-500.0,0.00010958,2]
[336412874,1724817039729,-500.0,0.00010958,2]
[336412875,1724817039739,-500.0,0.00010958,2]
[336412876,1724817039749,-198.29044407,0.00010958,2]
[336412877,1724817039759,-500.0,0.00010958,2]
[336412878,1724817039769,-500.0,0.00010958,2]
[336412879,1724817039779,-501.16804035,0.00010958,2]
[336412880,1724817039789,-500.0,0.00010958,2]
[336412881,1724817039799,-500.0,0.00010958,2]
[336412882,1724817039812,-628.50322203,0.00010958,2]
[336412883,1724817039822,-326.75646293,0.00010958,2]
[336412884,1724817039832,-500.0,0.00010958,2]
[336412885,1724817039841,-208.59094196,0.00010958,2]
[336412886,1724817039851,-500.0,0.00010958,2]
[336412887,1724817039861,-500.0,0.00010958,2]
[336412888,1724817039870,-500.0,0.00010958,2]
[336412889,1724817039883,-500.0,0.00010958,2]
[336412890,1724817039892,-537.33,0.00010958,2]
[336412891,1724817039901,-500.0,0.00010958,2]
[336412892,1724817039912,-500.0,0.00010958,2]
[336412893,1724817039922,-500.0,0.00010958,2]
[336412894,1724817039932,-500.0,0.00010958,2]
[336412895,1724817039942,-500.0,0.00010958,2]
[336412896,1724817039952,-500.0,0.00010958,2]
[336412897,1724817039962,-501.26345995,0.00010958,2]
[336412898,1724817039976,-500.0,0.00010958,2]
[336412899,1724817039987,-500.0,0.00010958,2]
[336412900,1724817039996,-500.0,0.00010958,2]
[336412901,1724817040006,-500.0,0.00010958,2]
[336412902,1724817040017,-2462.28,0.00010958,2]
[336412903,1724817040028,-529.29,0.00010958,2]
[336412904,1724817040037,-500.0,0.00010958,2]
[336412909,1724817040047,-500.0,0.00010958,2]
[336412912,1724817040056,-500.0,0.00010958,2]
[336412914,1724817040066,-1772.74,0.00010958,2]
[336412916,1724817040076,-232.52979759,0.00010958,2]
[336412919,1724817040085,-500.0,0.00010958,2]
[336412922,1724817040095,-501.69338903,0.00010958,2]
[336412925,1724817040105,-500.0,0.00010958,2]
[336412927,1724817040114,-500.0,0.00010958,2]
[336412928,1724817040124,-500.0,0.00010958,2]
[336412929,1724817040134,-500.0,0.00010958,2]
[336412930,1724817040143,-500.0,0.00010958,2]
[336412931,1724817040152,-500.0,0.00010958,2]
[336412932,1724817040162,-502.47577354,0.00010958,2]
[336412934,1724817040172,-500.0,0.00010958,2]
[336412937,1724817040182,-500.0,0.00010958,2]
[336412939,1724817040191,-500.0,0.00010958,2]
[336412941,1724817040201,-500.0,0.00010958,2]
[336412943,1724817040210,-500.0,0.00010958,2]
[336412945,1724817040219,-500.0,0.00010958,2]
[336412948,1724817040229,-500.0,0.00010958,2]
[336412953,1724817040240,-500.0,0.00010958,2]
[336412958,1724817040250,-500.0,0.00010958,2]
[336412965,1724817040259,-500.0,0.00010958,2]
[336412971,1724817040268,-500.0,0.00010958,2]
[336412975,1724817040280,-500.0,0.00010958,2]
[336412978,1724817040295,-500.0,0.00010958,2]
[336412982,1724817040304,-500.0,0.00010958,2]
[336412984,1724817040313,-500.0,0.00010958,2]
[336412986,1724817040323,-500.0,0.00010958,2]
[336412988,1724817040332,-500.0,0.00010958,2]
[336412990,1724817040343,-500.0,0.00010958,2]
[336412992,1724817040353,-500.0,0.00010958,2]
[336412994,1724817040363,-503.92779898,0.00010958,2]
[336412997,1724817040373,-500.0,0.00010958,2]
[336413000,1724817040383,-500.0,0.00010958,2]
[336413003,1724817040393,-502.79669445,0.00010958,2]
[336413005,1724817040402,-500.0,0.00010958,2]
[336413007,1724817040411,-503.02615329,0.00010958,2]
[336413008,1724817040421,-500.0,0.00010958,2]
[336413010,1724817040430,-500.0,0.00010958,2]
[336413012,1724817040439,-523.96,0.00010958,2]
[336413014,1724817040449,-500.0,0.00010958,2]
[336413015,1724817040458,-576.44003261,0.00010958,2]
[336413017,1724817040468,-500.0,0.00010958,2]
[336413018,1724817040477,-505.47283577,0.00010958,2]
[336413020,1724817040488,-500.0,0.00010958,2]
[336413022,1724817040498,-500.0,0.00010958,2]
[336413023,1724817040508,-500.0,0.00010958,2]
[336413024,1724817040520,-406.36719217,0.00010958,2]
[336413025,1724817040533,-612.66,0.00010958,2]
[336413026,1724817040542,-501.49429034,0.00010958,2]
[336413028,1724817040552,-500.0,0.00010958,2]
[336413029,1724817040562,-500.0,0.00010958,2]
[336413030,1724817040571,-500.77997714,0.00010958,2]
[336413031,1724817040580,-500.0,0.00010958,2]
[336413032,1724817040590,-500.0,0.00010958,2]
[336413033,1724817040600,-2017.69,0.00010958,2]
[336413034,1724817040610,-500.5856213,0.00010958,2]
[336413035,1724817040620,-500.0,0.00010958,2]
[336413036,1724817040629,-500.0,0.00010958,2]
[336413037,1724817040640,-500.0,0.00010958,2]
[336413038,1724817040650,-500.0,0.00010958,2]
[336413039,1724817040659,-501.59538685,0.00010958,2]
[336413040,1724817040668,-500.0,0.00010958,2]
[336413041,1724817040677,-277.60824031,0.00010958,2]
[336413042,1724817040688,-500.0,0.00010958,2]
[336413043,1724817040700,-500.0,0.00010958,2]
[336413044,1724817040711,-500.0,0.00010958,2]
[336413045,1724817040724,-500.0,0.00010958,2]
[336413046,1724817040735,-500.0,0.00010958,2]
[336413047,1724817040745,-500.0,0.00010958,2]
[336413048,1724817040755,-500.0,0.00010958,2]
[336413049,1724817040765,-462.39322236,0.00010958,2]
[336413050,1724817040777,-500.0,0.00010958,2]
[336413051,1724817040791,-500.0,0.00010958,2]
[336413052,1724817040801,-500.0,0.00010958,2]
[336413053,1724817040814,-500.0,0.00010958,2]
[336413054,1724817040823,-3505.12,0.00010958,2]
[336413055,1724817040835,-500.0,0.00010958,2]
[336413056,1724817040845,-500.0,0.00010958,2]
[336413057,1724817040856,-500.0,0.00010958,2]
[336413058,1724817040865,-500.9563934,0.00010958,2]
[336413060,1724817040877,-530.04,0.00010958,2]
[336413062,1724817040887,-500.0,0.00010958,2]
[336413063,1724817040898,-752.23,0.00010958,2]
[336413064,1724817040907,-752.23,0.00010958,2]
[336413065,1724817040916,-752.23,0.00010958,2]
[336413066,1724817040927,-500.0,0.00010958,2]
[336413067,1724817040937,-752.23,0.00010958,2]
[336413068,1724817040946,-752.23,0.00010958,2]
[336413069,1724817040956,-752.23,0.00010958,2]
[336413070,1724817040966,-491.64178261,0.00010958,2]
[336413071,1724817040975,-500.0,0.00010958,2]
[336413072,1724817040984,-1714.78,0.00010958,2]
[336413073,1724817040996,-500.0,0.00010958,2]
[336413074,1724817041006,-500.0,0.00010958,2]
[336413076,1724817041016,-500.0,0.00010958,2]
[336413077,1724817041028,-500.0,0.00010958,2]
[336413078,1724817041037,-501.64300067,0.00010958,2]
[336413079,1724817041046,-500.0,0.00010958,2]
[336413080,1724817041056,-500.0,0.00010958,2]
[336413081,1724817041065,-500.0,0.00010958,2]
[336413082,1724817041075,-500.81343307,0.00010958,2]
[336413083,1724817041085,-505.69797483,0.00010958,2]
[336413084,1724817041096,-500.0,0.00010958,2]
[336413085,1724817041107,-500.0,0.00010958,2]
[336413086,1724817041119,-500.0,0.00010958,2]
[336413087,1724817041129,-500.0,0.00010958,2]
[336413088,1724817041139,-500.0,0.00010958,2]
[336413089,1724817041149,-500.0,0.00010958,2]
[336413090,1724817041158,-351.82049501,0.00010958,2]
[336413091,1724817041168,-502.96163878,0.00010958,2]
[336413092,1724817041178,-500.0,0.00010958,2]
[336413093,1724817041189,-500.0,0.00010958,2]
[336413094,1724817041200,-500.0,0.00010958,2]
[336413095,1724817041210,-500.0,0.00010958,2]
[336413096,1724817041369,-500.0,0.00010958,2]
[336413097,1724817041381,-502.21806585,0.00010958,2]
[336413098,1724817041391,-500.0,0.00010958,2]
[336413099,1724817041401,-500.0,0.00010958,2]
[336413100,1724817041410,-500.0,0.00010958,2]
[336413101,1724817041419,-500.0,0.00010958,2]
[336413102,1724817041428,-500.0,0.00010958,2]
[336413103,1724817041437,-500.0,0.00010958,2]
[336413104,1724817041446,-845.11,0.00010958,2]
[336413105,1724817041455,-500.0,0.00010958,2]
[336413106,1724817041464,-500.0,0.00010958,2]
[336413107,1724817041474,-500.0,0.00010958,2]
[336413108,1724817041485,-500.0,0.00010958,2]
[336413109,1724817041496,-500.0,0.00010958,2]
[336413110,1724817041507,-500.0,0.00010958,2]
[336413111,1724817041516,-500.0,0.00010958,2]
[336413112,1724817041531,-1931.29,0.00010958,2]
[336413113,1724817041542,-620.35,0.00010958,2]
[336413114,1724817041554,-503.42218922,0.00010958,2]
[336413115,1724817041565,-500.0,0.00010958,2]
[336413116,1724817041577,-500.0,0.00010958,2]
[336413117,1724817041589,-500.0,0.00010958,2]
[336413118,1724817041600,-500.0,0.00010958,2]
[336413119,1724817041609,-500.0,0.00010958,2]
[336413120,1724817041620,-506.34058215,0.00010958,2]
[336413121,1724817041630,-500.0,0.00010958,2]
[336413122,1724817041640,-500.0,0.00010958,2]
[336413123,1724817041650,-1019.0,0.00010958,2]
[336413124,1724817041660,-261.19560127,0.00010958,2]
[336413125,1724817041670,-4333.78,0.00010958,2]
[336413126,1724817041682,-526.01,0.00010958,2]
[336413127,1724817041692,-500.0,0.00010958,2]
[336413128,1724817041704,-500.0,0.00010958,2]
[336413129,1724817041713,-500.0,0.00010958,2]
[336413130,1724817041724,-500.0,0.00010958,2]
[336413131,1724817041735,-500.0,0.00010958,2]
[336413132,1724817041747,-500.0,0.00010958,2]
[336413133,1724817041759,-501.78518697,0.00010958,2]
[336413134,1724817041770,-500.0,0.00010958,2]
[336413135,1724817041781,-500.0,0.00010958,2]
[336413136,1724817041791,-500.0,0.00010958,2]
[336413137,1724817041803,-500.0,0.00010958,2]
[336413138,1724817041817,-500.0,0.00010958,2]
[336413139,1724817041826,-502.25351092,0.00010958,2]
[336413140,1724817041835,-500.0,0.00010958,2]
[336413141,1724817041845,-500.0,0.00010958,2]
[336413142,1724817041855,-500.0,0.00010958,2]
[336413143,1724817041864,-500.0,0.00010958,2]
[336413144,1724817041874,-500.0,0.00010958,2]
[336413145,1724817041885,-500.0,0.00010958,2]
[336413146,1724817041894,-2280.18,0.00010958,2]
[336413147,1724817041905,-500.0,0.00010958,2]
[336413148,1724817041914,-500.0,0.00010958,2]
[336413149,1724817041927,-500.0,0.00010958,2]
[336413150,1724817041937,-500.92384882,0.00010958,2]
[336413151,1724817041947,-2059.76,0.00010958,2]
[336413152,1724817041957,-500.0,0.00010958,2]
[336413153,1724817041966,-500.0,0.00010958,2]
[336413154,1724817041977,-500.0,0.00010958,2]
[336413155,1724817041987,-500.0,0.00010958,2]
[336413156,1724817041997,-500.0,0.00010958,2]
[336413157,1724817042007,-500.0,0.00010958,2]
[336413158,1724817042016,-500.0,0.00010958,2]
[336413159,1724817042026,-500.77128868,0.00010958,2]
[336413160,1724817042037,-10275.59,0.00010958,2]
[336413161,1724817042046,-172.00859071,0.00010958,2]
[336413162,1724817042056,-500.0,0.00010958,2]
[336413163,1724817042067,-500.0,0.00010958,2]
[336413164,1724817042076,-500.0,0.00010958,2]
[336413165,1724817042087,-500.0,0.00010958,2]
[336413166,1724817042096,-500.0,0.00010958,2]
[336413167,1724817042106,-500.0,0.00010958,2]
[336413168,1724817042115,-500.0,0.00010958,2]
[336413169,1724817042125,-500.0,0.00010958,2]
[336413170,1724817042135,-500.0,0.00010958,2]
[336413171,1724817042145,-154.56721181,0.00010958,2]
[336413172,1724817042155,-500.0,0.00010958,2]
[336413173,1724817042165,-500.0,0.00010958,2]
[336413174,1724817042176,-466.98992962,0.00010958,2]
[336413175,1724817042186,-500.0,0.00010958,2]
[336413176,1724817042197,-500.0,0.00010958,2]
[336413177,1724817042207,-500.0,0.00010958,2]
[336413178,1724817042218,-502.92256548,0.00010958,2]
[336413179,1724817042227,-500.0,0.00010958,2]
[336413180,1724817042237,-500.0,0.00010958,2]
[336413181,1724817042247,-984.45,0.00010958,2]
[336413182,1724817042256,-500.0,0.00010958,2]
[336413183,1724817042265,-501.83939237,0.00010958,2]
[336413184,1724817042274,-2679.66,0.00010958,2]
[336413185,1724817042283,-500.0,0.00010958,2]
[336413186,1724817042293,-500.0,0.00010958,2]
[336413187,1724817042305,-6249.71,0.00010958,2]
[336413188,1724817042315,-235.8065945,0.00010959,2]
[336413189,1724817042325,-848.19,0.00010959,2]
[336413190,1724817042336,-199.50459183,0.00010973,2]
[336413191,1724817042346,-435.0771508,0.00010973,2]
[336413192,1724817042358,-155.0,0.00010973,2]
[336413193,1724817042367,-500.50433157,0.00010973,2]
[336413194,1724817042377,-501.77098307,0.00010973,2]
[336413195,1724817042387,-500.0,0.00010973,2]
[336413196,1724817042396,-500.0,0.00010973,2]
[336413197,1724817042407,-9030.71466468,0.00011132,2]
[336413198,1724817042416,-412.87226166,0.00011231,2]
[336413199,1724817042426,-752.23,0.00011231,2]
[336413200,1724817042435,-752.23,0.00011231,2]
[336413201,1724817042445,-752.23,0.00011231,2]
[336413202,1724817042455,-500.0,0.00011231,2]
[336413203,1724817042465,-633.59,0.00011232,2]
[336413204,1724817042475,-500.0,0.00011232,2]
[336413205,1724817042485,-500.0,0.00011232,2]
[336413206,1724817042495,-589.53439274,0.00011232,2]
[336413207,1724817042506,-500.0,0.00011232,2]
[336413208,1724817042516,-500.0,0.00011232,2]
[336413209,1724817042528,-500.0,0.00011232,2]
[336413210,1724817042537,-171.72825114,0.00011232,2]
[336413211,1724817042546,-500.0,0.00011232,2]
[336413212,1724817042556,-500.0,0.00011232,2]
[336413213,1724817042566,-500.0,0.00011232,2]
[336413214,1724817042576,-176.48961431,0.00011232,2]
[336413215,1724817042585,-505.29023737,0.00011232,2]
[336413216,1724817042596,-500.0,0.00011232,2]
[336413217,1724817042605,-500.0,0.00011232,2]
[336413218,1724817042615,-588.86,0.00011232,2]
[336413219,1724817042624,-628.02,0.00011232,2]
[336413220,1724817042633,-500.0,0.00011232,2]
[336413221,1724817042642,-521.97437136,0.00011232,2]
[336413222,1724817042652,-521.91904038,0.00011232,2]
[336413223,1724817042661,-500.0,0.00011232,2]
[336413224,1724817042671,-500.0,0.00011232,2]
[336413225,1724817042681,-174.48106513,0.00011232,2]
[336413226,1724817042691,-500.0,0.00011232,2]
[336413227,1724817042701,-503.68151862,0.00011232,2]
[336413228,1724817042710,-503.29847344,0.00011232,2]
[336413229,1724817042720,-500.0,0.00011232,2]
[336413230,1724817042730,-500.0,0.00011232,2]
[336413231,1724817042739,-507.11129092,0.00011232,2]
[336413232,1724817042749,-500.0,0.00011232,2]
[336413233,1724817042759,-500.0,0.00011232,2]
[336413234,1724817042768,-500.0,0.00011232,2]
[336413235,1724817042778,-277.42670703,0.00011232,2]
[336413236,1724817042788,-500.0,0.00011232,2]
[336413237,1724817042798,-500.0,0.00011232,2]
[336413238,1724817042810,-500.0,0.00011232,2]
[336413239,1724817042820,-501.45767318,0.00011232,2]
[336413240,1724817042829,-500.0,0.00011232,2]
[336413241,1724817042838,-500.0,0.00011232,2]
[336413242,1724817042848,-500.0,0.00011232,2]
[336413243,1724817042858,-500.0,0.00011232,2]
[336413244,1724817042868,-300.67858138,0.00011232,2]
[336413245,1724817042877,-500.0,0.00011232,2]
[336413246,1724817042887,-500.0,0.00011232,2]
[336413247,1724817042898,-500.0,0.00011232,2]
[336413248,1724817042909,-500.0,0.00011232,2]
[336413249,1724817042919,-500.0,0.00011232,2]
[336413250,1724817042928,-584.62,0.00011232,2]
[336413251,1724817042938,-187.62,0.00011232,2]
[336413252,1724817042948,-500.0,0.00011232,2]
[336413253,1724817042959,-500.0,0.00011232,2]
[336413254,1724817042970,-500.0,0.00011232,2]
[336413255,1724817042979,-500.0,0.00011232,2]
[336413256,1724817042989,-501.38042307,0.00011232,2]
[336413257,1724817042998,-502.14687425,0.00011232,2]
[336413258,1724817043007,-243.9,0.00011232,2]
[336413259,1724817043017,-500.0,0.00011232,2]
[336413260,1724817043027,-500.0,0.00011232,2]
[336413261,1724817043038,-500.0,0.00011232,2]
[336413262,1724817043048,-500.0,0.00011232,2]
[336413263,1724817043059,-627.93,0.00011232,2]
[336413264,1724817043069,-235.56467934,0.00011232,2]
[336413265,1724817043079,-469.96,0.00011232,2]
[336413266,1724817043090,-500.0,0.00011232,2]
[336413267,1724817043101,-500.0,0.00011232,2]
[336413268,1724817043111,-500.0,0.00011232,2]
[336413269,1724817043122,-500.0,0.00011232,2]
[336413270,1724817043133,-435.31121526,0.00011232,2]
[336413271,1724817043144,-500.0,0.00011232,2]
[336413272,1724817043153,-500.0,0.00011232,2]
[336413273,1724817043163,-244.27,0.00011232,2]
[336413274,1724817043172,-500.0,0.00011232,2]
[336413275,1724817043183,-500.0,0.00011232,2]
[336413276,1724817043192,-500.0,0.00011232,2]
[336413278,1724817043202,-500.0,0.00011232,2]
[336413279,1724817043212,-500.0,0.00011232,2]
[336413281,1724817043221,-500.0,0.00011232,2]
[336413283,1724817043230,-500.0,0.00011232,2]
[336413284,1724817043240,-500.0,0.00011232,2]
[336413286,1724817043251,-500.0,0.00011232,2]
[336413287,1724817043261,-500.0,0.00011232,2]
[336413288,1724817043270,-194.43,0.00011232,2]
[336413289,1724817043280,-362.46,0.00011232,2]
[336413290,1724817043288,-500.0,0.00011232,2]
[336413292,1724817043298,-377.76497129,0.00011232,2]
[336413293,1724817043308,-500.0,0.00011232,2]
[336413294,1724817043317,-500.0,0.00011232,2]
[336413295,1724817043327,-247.11,0.00011232,2]
[336413296,1724817043336,-377.22,0.00011232,2]
[336413297,1724817043346,-500.0,0.00011232,2]
[336413298,1724817043355,-500.0,0.00011232,2]
[336413299,1724817043365,-2462.28,0.00011232,2]
[336413300,1724817043375,-529.29,0.00011232,2]
[336413301,1724817043385,-505.10180024,0.00011232,2]
[336413303,1724817043394,-1772.74,0.00011232,2]
[336413304,1724817043404,-500.0,0.00011232,2]
[336413305,1724817043416,-500.0,0.00011232,2]
[336413306,1724817043427,-500.0,0.00011232,2]
[336413307,1724817043438,-500.0,0.00011232,2]
[336413309,1724817043447,-500.0,0.00011232,2]
[336413311,1724817043456,-500.0,0.00011232,2]
[336413313,1724817043465,-591.89,0.00011232,2]
[336413315,1724817043475,-500.0,0.00011232,2]
[336413317,1724817043484,-500.0,0.00011232,2]
[336413318,1724817043494,-585.06316579,0.00011232,2]
[336413320,1724817043503,-502.02519842,0.00011232,2]
[336413321,1724817043512,-500.0,0.00011232,2]
[336413322,1724817043524,-500.0,0.00011232,2]
[336413324,1724817043534,-500.0,0.00011232,2]
[336413326,1724817043543,-500.0,0.00011232,2]
[336413328,1724817043552,-500.0,0.00011232,2]
[336413330,1724817043562,-500.0,0.00011232,2]
[336413332,1724817043572,-500.0,0.00011232,2]
[336413334,1724817043581,-500.0,0.00011232,2]
[336413336,1724817043592,-500.0,0.00011232,2]
[336413338,1724817043602,-583.13266837,0.00011232,2]
[336413341,1724817043613,-500.0,0.00011232,2]
[336413343,1724817043624,-503.15118585,0.00011232,2]
[336413345,1724817043635,-523.96,0.00011232,2]
[336413347,1724817043645,-500.0,0.00011232,2]
[336413349,1724817043656,-500.0,0.00011232,2]
[336413351,1724817043665,-500.0,0.00011232,2]
[336413353,1724817043674,-500.0,0.00011232,2]
[336413355,1724817043684,-500.0,0.00011232,2]
[336413357,1724817043694,-500.0,0.00011232,2]
[336413359,1724817043704,-2017.69,0.00011232,2]
[336413361,1724817043713,-500.0,0.00011232,2]
[336413363,1724817043723,-500.0,0.00011232,2]
[336413365,1724817043732,-560.20579319,0.00011232,2]
[336413367,1724817043741,-500.0,0.00011232,2]
[336413370,1724817043751,-510.33263118,0.00011232,2]
[336413372,1724817043760,-500.0,0.00011232,2]
[336413374,1724817043769,-500.0,0.00011232,2]
[336413376,1724817043780,-500.0,0.00011232,2]
[336413378,1724817043789,-500.0,0.00011232,2]
[336413380,1724817043798,-500.0,0.00011232,2]
[336413382,1724817043810,-500.0,0.00011232,2]
[336413384,1724817043820,-597.37751733,0.00011232,2]
[336413386,1724817043830,-410.11641657,0.00011232,2]
[336413388,1724817043839,-500.0,0.00011232,2]
[336413389,1724817043851,-240.3207733,0.00011232,2]
[336413391,1724817043861,-3505.12,0.00011232,2]
[336413394,1724817043871,-500.0,0.00011232,2]
[336413397,1724817043882,-500.0,0.00011232,2]
[336413399,1724817043893,-500.0,0.00011232,2]
[336413402,1724817043903,-530.04,0.00011232,2]
[336413403,1724817043912,-501.39464723,0.00011232,2]
[336413404,1724817043922,-500.0,0.00011232,2]
[336413405,1724817043931,-1714.78,0.00011232,2]
[336413406,1724817043942,-202.68,0.00011232,2]
[336413407,1724817043952,-500.0,0.00011232,2]
[336413408,1724817043963,-502.92738681,0.00011232,2]
[336413409,1724817043975,-500.0,0.00011232,2]
[336413410,1724817043985,-500.0,0.00011232,2]
[336413411,1724817043994,-500.0,0.00011232,2]
[336413412,1724817044006,-500.0,0.00011232,2]
[336413413,1724817044015,-500.0,0.00011232,2]
[336413414,1724817044025,-500.0,0.00011232,2]
[336413415,1724817044037,-594.38,0.00011232,2]
[336413416,1724817044047,-500.0,0.00011232,2]
[336413417,1724817044057,-500.0,0.00011232,2]
[336413418,1724817044066,-500.0,0.00011232,2]
[336413419,1724817044075,-500.53941819,0.00011232,2]
[336413420,1724817044085,-500.0,0.00011232,2]
[336413421,1724817044094,-647.23,0.00011232,2]
[336413422,1724817044103,-500.0,0.00011232,2]
[336413423,1724817044113,-649.76,0.00011232,2]
[336413424,1724817044122,-503.05372134,0.00011232,2]
[336413425,1724817044132,-500.0,0.00011232,2]
[336413426,1724817044141,-500.0,0.00011232,2]
[336413427,1724817044150,-845.11,0.00011232,2]
[336413428,1724817044159,-500.0,0.00011232,2]
[336413429,1724817044168,-500.0,0.00011232,2]
[336413430,1724817044178,-1931.29,0.00011232,2]
[336413431,1724817044187,-620.35,0.00011232,2]
[336413432,1724817044196,-500.0,0.00011232,2]
[336413433,1724817044206,-500.0,0.00011232,2]
[336413434,1724817044214,-500.0,0.00011232,2]
[336413435,1724817044224,-500.0,0.00011232,2]
[336413436,1724817044232,-500.0,0.00011232,2]
[336413437,1724817044242,-501.65525648,0.00011232,2]
[336413438,1724817044251,-1019.0,0.00011232,2]
[336413439,1724817044260,-4333.78,0.00011232,2]
[336413440,1724817044270,-526.01,0.00011232,2]
[336413441,1724817044279,-500.0,0.00011232,2]
[336413442,1724817044289,-500.0,0.00011232,2]
[336413443,1724817044298,-507.06039095,0.00011232,2]
[336413444,1724817044306,-500.0,0.00011232,2]
[336413445,1724817044316,-505.25350058,0.00011232,2]
[336413446,1724817044325,-521.41444545,0.00011232,2]
[336413447,1724817044334,-500.0,0.00011232,2]
[336413448,1724817044344,-482.1720992,0.00011232,2]
[336413449,1724817044353,-500.0,0.00011232,2]
[336413450,1724817044362,-502.24,0.00011232,2]
[336413451,1724817044371,-500.0,0.00011232,2]
[336413452,1724817044381,-500.0,0.00011232,2]
[336413453,1724817044390,-229.40978399,0.00011232,2]
[336413454,1724817044399,-2280.18,0.00011232,2]
[336413455,1724817044409,-500.0,0.00011232,2]
[336413456,1724817044418,-2059.76,0.00011232,2]
[336413457,1724817044430,-500.0,0.00011232,2]
[336413458,1724817044439,-500.0,0.00011232,2]
[336413459,1724817044448,-460.65,0.00011232,2]
[336413460,1724817044458,-500.0,0.00011232,2]
[336413461,1724817044468,-500.0,0.00011232,2]
[336413462,1724817044477,-500.0,0.00011232,2]
[336413463,1724817044487,-10275.59,0.00011232,2]
[336413464,1724817044496,-500.0,0.00011232,2]
[336413465,1724817044507,-500.0,0.00011232,2]
[336413466,1724817044516,-230.31744761,0.00011232,2]
[336413467,1724817044527,-244.28,0.00011232,2]
[336413468,1724817044536,-500.0,0.00011232,2]
[336413469,1724817044545,-500.0,0.00011232,2]
[336413470,1724817044555,-500.0,0.00011232,2]
[336413471,1724817044565,-500.0,0.00011232,2]
[336413472,1724817044574,-503.35024385,0.00011232,2]
[336413473,1724817044606,-500.0,0.00011232,2]
[336413474,1724817044615,-500.0,0.00011232,2]
[336413475,1724817044625,-500.0,0.00011232,2]
[336413476,1724817044634,-500.0,0.00011232,2]
[336413477,1724817044643,-500.0,0.00011232,2]
[336413478,1724817044653,-500.0,0.00011232,2]
[336413479,1724817044662,-984.45,0.00011232,2]
[336413480,1724817044672,-500.0,0.00011232,2]
[336413481,1724817044681,-2679.66,0.00011232,2]
[336413482,1724817044691,-500.0,0.00011232,2]
[336413483,1724817044701,-500.0,0.00011232,2]
[336413484,1724817044711,-6249.71,0.00011232,2]
[336413485,1724817044720,-2611.26711056,0.00011268,2]
[336413487,1724817044730,-752.23,0.00011505,2]
[336413488,1724817044739,-12976.35681957,0.00011506,5]
[336413489,1724817044749,-205.01,0.00011506,2]
[336413490,1724817044759,-500.0,0.00011506,2]
[336413491,1724817044768,-399.60003704,0.00011506,2]
[336413492,1724817044779,-500.0,0.00011506,2]
[336413493,1724817044789,-500.0,0.00011506,2]
[336413494,1724817044798,-500.0,0.00011506,2]
[336413495,1724817044810,-500.0,0.00011506,2]
[336413496,1724817044819,-607.31,0.00011506,2]
[336413497,1724817044829,-628.02,0.00011506,2]
[336413498,1724817044838,-500.0,0.00011506,2]
[336413499,1724817044848,-500.0,0.00011506,2]